bitfinex-derivatives/quotes_ETHF0:USTF0_20240831
["timestamp","ask_amount","ask_price","bid_price","bid_amount"]
[1725107112777,0.00247345,2525.9,2525.8,4.39251016]
[1725107112967,0.00247345,2525.9,2525.8,6.37231239]
[1725107115683,0.00247345,2525.9,2525.8,5.70187486]
[1725107116384,0.00247345,2525.9,2525.8,7.25949912]
[1725107118482,0.00247345,2525.9,2525.8,10.46729912]
[1725107119271,0.00247345,2525.9,2525.8,8.9096401]
[1725107119478,0.00707345,2525.9,2525.8,8.9096401]
[1725107119679,0.00707345,2525.9,2525.8,10.46729912]
[1725107119980,0.00707345,2525.9,2525.8,7.25949912]
[1725107120199,0.00707345,2525.9,2525.8,10.46729912]
[1725107121384,0.00707345,2525.9,2525.8,10.46728403]
[1725107122480,0.00707345,2525.9,2525.8,7.25948403]
[1725107122885,0.00707345,2525.9,2525.8,10.46728403]
[1725107126274,0.00707345,2525.9,2525.8,10.46726739]
[1725107126674,0.00707345,2525.9,2525.8,8.90960837]
[1725107126884,0.00707345,2525.9,2525.8,10.98657319]
[1725107127075,0.3843,2526.2,2526.1,0.2375]
[1725107127271,0.3731,2526.3,2526.1,9.13028871]
[1725107127472,0.3731,2526.3,2526.2,2.42362396]
[1725107127674,0.3731,2526.3,2526.2,2.79932396]
[1725107128079,0.3731,2526.3,2526.2,3.03681396]
[1725107130173,0.39,2526.4,2526.3,0.23748]
[1725107130378,0.39,2526.4,2526.3,1.23748]
[1725107133392,0.39,2526.4,2526.3,2.62307534]
[1725107133815,0.39,2526.4,2526.3,1.23748]
[1725107155401,4.36e-06,2526.5,2526.4,0.23748]
[1725107155715,1.1016,2527.2,2526.4,14.1042444]
[1725107156003,1.1016,2527.2,2527.1,1.23741]
[1725107156594,1.1016,2527.2,2527.1,0.23741]
[1725107156809,1.1016,2527.2,2527.1,1.23741]
[1725107158907,0.00393272,2527.4,2527.3,0.23739]
[1725107159112,0.00393272,2527.4,2527.3,1.23739]
[1725107159613,0.00393272,2527.4,2527.3,1.60349]
[1725107161812,0.00393272,2527.4,2527.3,5.56029]
[1725107163216,0.00393272,2527.4,2527.3,1.60349]
[1725107168015,0.00393272,2527.4,2526.8,11.92821604]
[1725107168016,13.16853272,2527.4,2526.6,7.90021604]
[1725107168222,13.16853272,2527.4,2526.9,1.0]
[1725107168223,0.23742,2527.0,2526.9,1.0]
[1725107168723,4.19502,2527.0,2526.9,1.0]
[1725107169310,11.55116,2527.0,2526.3,4.158]
[1725107169617,3.2078,2526.8,2526.3,1.0]
[1725107169815,0.23748,2526.4,2526.0,3.59714436]
[1725107170011,3.2078,2526.8,2526.0,0.38934436]
[1725107170012,0.3723,2526.3,2526.0,0.38934436]
[1725107170210,0.3723,2526.3,2526.2,1.0]
[1725107170819,4.3307,2526.3,2526.2,1.0]
[1725107175011,4.56818,2526.3,2526.2,1.0]
[1725107175217,13.5385,2526.3,2526.1,1.0]
[1725107175514,0.2375,2526.1,2526.0,0.00594436]
[1725107176026,9.9584,2526.1,2526.0,0.00594436]
[1725107176213,10.1959,2526.1,2526.0,0.00594436]
[1725107176419,9.9584,2526.1,2526.0,0.00594436]
[1725107177824,10.1959,2526.1,2526.0,0.00594436]
[1725107180123,4.1959,2526.1,2526.0,0.00594436]
[1725107180626,10.1959,2526.1,2526.0,0.00594436]
[1725107183024,4.1959,2526.1,2526.0,0.00594436]
[1725107189519,4.1959,2526.1,2526.0,0.74594436]
[1725107189716,3.9584,2526.1,2526.0,0.74594436]
[1725107189919,0.2375,2526.2,2526.0,0.74594436]
[1725107191319,0.2375,2526.2,2526.1,1.0]
[1725107191515,4.1959,2526.2,2526.1,1.0]
[1725107192323,3.9584,2526.2,2526.1,1.3875]
[1725107193833,0.60979,2526.3,2526.1,1.3875]
[1725107195926,0.60979,2526.3,2526.1,0.3875]
[1725107197225,0.60979,2526.3,2526.2,0.0537824]
[1725107197423,4.56819,2526.3,2526.2,0.0537824]
[1725107197624,3.9584,2526.3,2526.2,0.0537824]
[1725107202740,4.19588,2526.3,2526.2,0.0537824]
[1725107206232,3.9584,2526.3,2526.2,0.0537824]
[1725107207044,4.19588,2526.3,2526.2,0.0537824]
[1725107210392,0.23748,2526.3,2526.2,0.0537824]
[1725107212049,3.5604,2526.5,2526.2,0.0537824]
[1725107212250,0.23748,2526.4,2526.3,0.0537824]
[1725107212754,4.19588,2526.4,2526.3,0.0537824]
[1725107213150,6.78864925,2526.4,2526.3,0.0537824]
[1725107214163,4.19588,2526.4,2526.3,0.0537824]
[1725107216755,4.19588,2526.4,2526.0,0.98345436]
[1725107216756,3.9584,2526.4,2526.0,0.00594436]
[1725107216966,6.65724472,2526.5,2526.0,0.00594436]
[1725107216967,2.8288837,2526.2,2526.0,0.00594436]
[1725107217259,2.5913837,2526.1,2526.0,0.00594436]
[1725107218865,2.5913837,2526.2,2526.0,0.00594436]
[1725107219963,2.5913837,2526.1,2526.0,0.24345436]
[1725107220160,2.5913837,2526.2,2526.1,0.2375]
[1725107220464,2.5913837,2526.4,2526.3,0.23748]
[1725107220653,2.5913837,2526.4,2526.3,1.23748]
[1725107221362,0.23746,2526.6,2526.3,1.23748]
[1725107221659,3.72239472,2526.7,2526.4,0.96187]
[1725107222460,2.59195903,2526.5,2526.4,0.96187]
[1725107223863,2.59195903,2526.6,2526.4,0.96187]
[1725107224076,2.59195903,2526.5,2526.4,0.96187]
[1725107224259,2.59195903,2526.6,2526.4,0.96187]
[1725107226163,2.59195903,2526.6,2526.5,0.23747]
[1725107226370,0.3849,2526.8,2526.5,0.23747]
[1725107226371,2.59195903,2526.7,2526.5,0.23747]
[1725107226856,2.59195903,2526.7,2526.6,0.23746]
[1725107227261,2.59195903,2526.7,2526.5,1.23746]
[1725107227468,2.59195903,2526.7,2526.5,1.0]
[1725107227667,2.59195903,2526.7,2526.5,1.23746]
[1725107229460,2.59195903,2526.7,2526.6,1.23746]
[1725107229672,2.97805903,2526.9,2526.7,0.23744]
[1725107229972,0.3861,2526.9,2526.8,0.7585]
[1725107230275,4.3437,2526.9,2526.8,0.7585]
[1725107233070,4.3437,2526.9,2526.8,1.1475]
[1725107236671,4.3437,2526.9,2526.8,0.7588]
[1725107239379,4.58113,2526.9,2526.8,0.7588]
[1725107240367,0.62353,2526.9,2526.8,0.7588]
[1725107240874,4.58113,2526.9,2526.8,0.7588]
[1725107241079,0.62353,2526.9,2526.8,0.7588]
[1725107241281,4.58113,2526.9,2526.8,0.7588]
[1725107244065,0.62353,2526.9,2526.8,0.7588]
[1725107244474,4.58113,2526.9,2526.8,0.7588]
[1725107245785,0.23743,2526.9,2526.8,0.7588]
[1725107246472,2.82937903,2527.0,2526.8,0.7588]
[1725107246972,0.23742,2527.0,2526.8,0.7588]
[1725107254381,2.82937903,2527.0,2526.8,0.7588]
[1725107254782,0.23742,2527.0,2526.8,0.7588]
[1725107256291,2.82937903,2527.0,2526.8,0.7588]
[1725107258686,1.1294,2527.1,2526.8,0.7588]
[1725107258687,2.59195903,2527.1,2526.8,0.7588]
[1725107258884,2.59195903,2527.1,2526.9,0.3888]
[1725107259084,2.82936903,2527.1,2526.9,0.3888]
[1725107261180,2.59195903,2527.0,2526.9,0.3888]
[1725107261382,2.82936903,2527.1,2526.9,0.3888]
[1725107261583,2.59195903,2527.1,2526.9,0.62623]
[1725107262185,2.59195903,2527.0,2526.9,0.62623]
[1725107262790,2.59195903,2527.1,2527.0,0.23742]
[1725107263090,5.79975903,2527.2,2527.1,0.61831]
[1725107263483,5.79975903,2527.2,2527.1,0.3809]
[1725107264787,6.16185903,2527.2,2527.1,0.3809]
[1725107265185,3.5699,2527.2,2527.1,0.3809]
[1725107265587,0.23741,2527.1,2526.9,1.3888]
[1725107265789,0.23742,2527.0,2526.9,0.7501]
[1725107266189,2.83029799,2527.1,2526.9,0.7501]
[1725107266388,0.23742,2527.0,2526.9,0.7501]
[1725107267093,2.83029799,2527.1,2526.9,0.7501]
[1725107268194,2.59287799,2527.0,2526.9,0.7501]
[1725107268790,2.59287799,2527.1,2526.9,0.7501]
[1725107269190,2.59287799,2527.1,2526.9,0.98753]
[1725107272296,2.59287799,2527.0,2526.9,0.98753]
[1725107272498,2.59287799,2527.1,2526.9,0.98753]
[1725107273001,2.59287799,2527.0,2526.9,0.98753]
[1725107285412,1.36281,2527.2,2526.8,0.62644]
[1725107285413,2.59287799,2527.1,2526.8,0.62644]
[1725107285702,2.59287799,2527.0,2526.9,0.3543]
[1725107285908,2.83028799,2527.1,2526.9,0.3543]
[1725107286297,2.59287799,2527.0,2526.9,0.3543]
[1725107286501,2.83028799,2527.1,2526.9,0.3543]
[1725107286699,2.59287799,2527.0,2526.9,0.3543]
[1725107289300,2.83029799,2527.0,2526.8,0.389]
[1725107289505,3.19160799,2526.9,2526.7,0.3857]
[1725107289707,0.3739,2526.8,2526.7,0.3857]
[1725107290409,2.96677799,2526.8,2526.7,0.3857]
[1725107293303,2.59287799,2526.8,2526.7,1.62315]
[1725107293508,2.95417799,2526.9,2526.7,1.62315]
[1725107293912,2.59287799,2526.8,2526.7,1.62315]
[1725107294412,2.59287799,2526.8,2526.7,5.58075]
[1725107294611,2.59287799,2527.0,2526.7,6.96624495]
[1725107294814,2.59287799,2527.0,2526.8,1.0]
[1725107295118,2.59287799,2527.0,2526.8,1.23744]
[1725107295314,2.59287799,2527.0,2526.9,0.387]
[1725107296317,2.59747799,2527.0,2526.9,0.387]
[1725107297020,2.59747799,2527.0,2526.9,0.62443]
[1725107297209,2.5992499,2527.0,2526.9,0.62443]
[1725107299411,0.0046,2527.0,2526.9,0.62443]
[1725107300119,2.59939964,2527.0,2526.9,0.62443]
[1725107301316,0.0046,2527.0,2526.9,0.62443]
[1725107301822,2.5995552,2527.0,2526.9,0.62443]
[1725107302215,0.0046,2527.0,2526.9,0.62443]
[1725107302514,2.59964225,2527.0,2526.9,0.62443]
[1725107302713,2.59964225,2527.0,2526.6,1.03621604]
[1725107302714,4.9622,2527.0,2526.6,1.03621604]
[1725107303026,7.30464472,2526.7,2526.1,1.03621604]
[1725107303219,0.2375,2526.1,2526.0,0.00594436]
[1725107303606,3.4453,2526.1,2526.0,0.00594436]
[1725107303812,3.2078,2526.1,2526.0,0.00594436]
[1725107304425,3.71852308,2526.2,2526.0,0.00594436]
[1725107304726,3.33002308,2526.2,2526.0,0.00594436]
[1725107305431,2.59212308,2526.4,2526.1,1.0]
[1725107305622,2.97462308,2526.4,2526.1,1.3849]
[1725107307125,2.97462308,2526.4,2526.2,0.3708]
[1725107307325,0.3825,2526.4,2526.2,0.3708]
[1725107307524,0.3825,2526.4,2526.3,0.3612]
[1725107307724,4.3409,2526.4,2526.3,0.3612]
[1725107308430,0.3825,2526.4,2526.3,0.3612]
[1725107308626,4.3409,2526.4,2526.3,0.3612]
[1725107310129,0.3825,2526.4,2526.3,0.3612]
[1725107310544,4.3409,2526.4,2526.2,0.3708]
[1725107310729,0.3825,2526.4,2526.2,0.3708]
[1725107316443,0.61998,2526.4,2526.2,0.3708]
[1725107316640,0.61998,2526.4,2526.1,0.7393]
[1725107317439,3.82778,2526.4,2526.1,0.7393]
[1725107317938,0.61998,2526.4,2526.1,0.7393]
[1725107318138,3.82778,2526.4,2526.1,0.7393]
[1725107318534,3.5903,2526.4,2526.1,0.7393]
[1725107319137,3.82778,2526.4,2526.1,0.7393]
[1725107321237,0.61998,2526.4,2526.1,0.7393]
[1725107321835,0.61998,2526.4,2526.2,0.3874]
[1725107322333,0.3825,2526.4,2526.2,0.3874]
[1725107322538,0.3825,2526.4,2526.2,0.62489]
[1725107322748,0.3825,2526.4,2526.2,0.3874]
[1725107323543,3.2078,2526.5,2526.3,0.23748]
[1725107323751,3.2078,2526.5,2526.3,1.23748]
[1725107324046,0.38,2526.7,2526.4,0.377]
[1725107324249,3.2078,2526.6,2526.5,0.3895]
[1725107324748,0.23747,2526.5,2526.2,0.3874]
[1725107324932,0.23747,2526.5,2526.2,0.7644]
[1725107324933,0.38,2526.4,2526.2,0.7644]
[1725107325139,0.61748,2526.4,2526.2,0.377]
[1725107325340,3.2078,2526.3,2526.2,0.377]
[1725107328350,3.2078,2526.3,2526.2,0.3904456]
[1725107329649,3.44528,2526.3,2526.2,0.3904456]
[1725107329855,3.44528,2526.3,2526.2,0.0134456]
[1725107334357,7.40368,2526.3,2526.2,0.0134456]
[1725107334549,9.99580308,2526.3,2526.2,0.0134456]
[1725107340255,7.40368,2526.3,2526.2,0.0134456]
[1725107341956,20.61034269,2526.3,2526.2,0.0134456]
[1725107342757,0.2375,2526.1,2526.0,0.00594436]
[1725107342958,0.2375,2526.1,2525.5,1.0]
[1725107342959,0.23753,2525.9,2525.5,1.0]
[1725107344258,4.1242001,2525.8,2525.4,1.11874436]
[1725107344472,4.1242001,2525.8,2525.4,2.35630436]
[1725107344763,3.44533,2525.9,2525.4,2.11874436]
[1725107345151,6.03408151,2525.9,2525.4,2.11874436]
[1725107345354,6.03408151,2525.9,2525.5,0.23756]
[1725107346649,3.44533,2525.9,2525.5,0.23756]
[1725107347050,6.03408151,2525.9,2525.5,0.23756]
[1725107347248,0.23753,2525.8,2525.4,2.11874436]
[1725107347460,0.23753,2525.8,2525.4,1.11874436]
[1725107347461,0.23754,2525.7,2525.4,1.11874436]
[1725107347658,2.96455151,2525.7,2525.4,1.11874436]
[1725107349064,6.40989151,2525.7,2525.4,1.11874436]
[1725107349561,3.20209151,2525.7,2525.4,1.11874436]
[1725107349962,6.40989151,2525.7,2525.4,1.11874436]
[1725107350663,3.20209151,2525.7,2525.4,1.11874436]
[1725107351059,6.40989151,2525.7,2525.4,1.11874436]
[1725107351762,6.03409151,2525.7,2525.4,1.11874436]
[1725107352064,3.44534,2525.7,2525.4,1.11874436]
[1725107352971,0.3631,2525.6,2525.4,1.11874436]
[1725107357467,3.44534,2525.7,2525.4,1.11874436]
[1725107358958,0.23755,2525.6,2525.4,1.11874436]
[1725107359964,3.44535,2525.7,2525.4,1.11874436]
[1725107361869,0.23755,2525.7,2525.4,1.11874436]
[1725107362073,8.13415694,2525.6,2525.4,0.00594436]
[1725107362271,1.23756,2525.5,2525.4,0.00594436]
[1725107362470,5.94286,2525.5,2525.4,0.00594436]
[1725107362664,12.70656845,2525.5,2525.4,0.00594436]
[1725107363087,10.11781694,2525.5,2525.4,0.00594436]
[1725107364794,9.75901694,2525.5,2525.4,0.00594436]
[1725107370184,12.34776845,2525.5,2525.4,0.00594436]
[1725107370388,12.34776845,2525.5,2524.8,3.2078]
[1725107370389,15.52145694,2525.5,2524.9,0.3681]
[1725107370593,3.2078,2525.0,2524.9,0.3681]
[1725107371798,0.19526406,2525.3,2524.9,5.3289]
[1725107371989,14.50015691,2525.5,2524.9,1.3681]
[1725107372194,3.2078,2525.2,2524.9,1.60571]
[1725107372903,3.2078,2525.2,2524.9,1.3681]
[1725107373202,3.2078,2525.2,2524.9,0.3681]
[1725107373397,3.5832,2525.2,2524.9,0.3681]
[1725107373605,4.96,2525.1,2524.7,0.24357436]
[1725107373813,1.0,2525.1,2524.9,0.7479]
[1725107374098,3.2078,2525.0,2524.9,0.7479]
[1725107375796,3.2078,2525.0,2524.9,0.3887]
[1725107377998,3.44541,2525.0,2524.9,0.3887]
[1725107378592,4.44541,2525.0,2524.9,0.3887]
[1725107379712,4.2078,2525.0,2524.9,0.3887]
[1725107380009,4.44541,2525.0,2524.9,0.3887]
[1725107380890,4.2078,2525.0,2524.9,0.3887]
[1725107387414,1.0,2525.0,2524.9,0.3887]
[1725107387598,4.2078,2525.0,2524.9,0.3887]
[1725107388509,1.0,2525.0,2524.9,0.3887]
[1725107388814,4.2078,2525.0,2524.9,0.3887]
[1725107389203,3.2078,2525.0,2524.9,0.3887]
[1725107391610,1.0,2525.1,2524.9,0.3887]
[1725107392414,3.82543997,2525.1,2524.9,0.3887]
[1725107393719,3.2078,2525.0,2524.9,0.3887]
[1725107395923,1.0,2525.1,2524.9,0.3887]
[1725107397219,3.58783997,2525.1,2524.9,0.3887]
[1725107398918,1.0,2525.1,2524.9,0.3887]
[1725107399114,3.58783997,2525.1,2524.9,0.3887]
[1725107399515,3.58783997,2525.1,2524.9,0.62631]
[1725107399729,1.0,2525.1,2524.9,0.62631]
[1725107400122,1.0,2525.1,2524.9,0.3887]
[1725107400324,2.58783997,2525.3,2524.9,5.3487]
[1725107400526,7.11095694,2525.5,2525.3,0.23758]
[1725107400527,2.58783997,2525.4,2525.3,0.23758]
[1725107400731,10.69879691,2525.5,2525.3,0.23758]
[1725107400919,10.69879691,2525.5,2525.4,0.7616]
[1725107401534,11.05409691,2525.5,2525.4,0.7616]
[1725107404435,7.76279691,2525.5,2525.4,0.7616]
[1725107407432,7.76279691,2525.5,2525.4,0.99917]
[1725107407732,4.17495694,2525.5,2525.4,4.95917]
[1725107412533,5.17495694,2525.5,2525.4,4.7216]
[1725107412738,5.41251694,2525.5,2525.4,0.7616]
[1725107412924,5.80031694,2525.5,2525.4,0.7616]
[1725107413126,5.56275694,2525.5,2525.4,0.7616]
[1725107413338,5.56275694,2525.5,2525.4,4.7216]
[1725107415019,5.56275694,2525.5,2525.4,1.1165]
[1725107415927,5.17495694,2525.5,2525.4,1.1165]
[1725107417228,5.17495694,2525.5,2525.4,1.35407]
[1725107417431,4.17495694,2525.5,2525.4,1.35407]
[1725107417835,4.17495694,2525.5,2525.4,5.31407]
[1725107422527,5.17495694,2525.5,2525.4,0.59247]
[1725107422831,5.41251694,2525.5,2525.2,0.62179]
[1725107423035,1.0,2525.3,2525.2,0.62179]
[1725107430043,5.17495694,2525.5,2525.3,0.23758]
[1725107430236,5.17495694,2525.5,2525.4,0.3844]
[1725107434347,1.0,2525.5,2525.4,0.3844]
[1725107434644,1.0,2525.5,2525.4,0.62197]
[1725107436243,3.68723997,2525.6,2525.5,0.23756]
[1725107436439,5.79563997,2525.7,2525.6,0.23755]
[1725107436633,3.2078,2525.7,2525.6,0.23755]
[1725107437037,3.2078,2525.7,2525.6,0.62715]
[1725107437643,2.97378433,2526.0,2525.8,0.23753]
[1725107437842,2.97378433,2526.0,2525.7,0.59484]
[1725107437843,4.35248433,2526.0,2525.7,0.59484]
[1725107438543,4.35248433,2526.0,2525.7,0.3573]
[1725107439048,4.35248433,2526.0,2525.3,4.2078]
[1725107439049,4.44534,2525.8,2525.3,0.23757]
[1725107439241,1.0,2525.5,2525.3,0.7311]
[1725107439443,1.0,2525.5,2525.2,4.76958]
[1725107439649,0.3678,2525.4,2525.2,5.50068]
[1725107442545,1.0,2525.5,2525.3,0.23758]
[1725107442852,0.7355,2525.6,2525.3,0.23758]
[1725107443153,3.32333997,2525.6,2525.3,0.23758]
[1725107443451,0.7355,2525.6,2525.3,0.23758]
[1725107443853,2.97453997,2525.7,2525.3,3.2078]
[1725107444151,3.35753997,2525.7,2525.5,0.23755]
[1725107444358,2.58783997,2525.6,2525.4,0.23756]
[1725107446448,2.58783997,2525.6,2525.3,0.23757]
[1725107446647,2.58783997,2525.5,2525.3,0.23757]
[1725107446847,2.58783997,2525.6,2525.3,0.23757]
[1725107447353,2.58783997,2525.5,2525.3,0.23757]
[1725107448758,2.58783997,2525.5,2525.4,0.23757]
[1725107448945,2.58783997,2525.6,2525.4,0.23757]
[1725107449760,2.58783997,2525.5,2525.4,0.23757]
[1725107451648,2.58783997,2525.6,2525.4,0.23757]
[1725107451957,2.58783997,2525.5,2525.4,0.23757]
[1725107452145,2.58783997,2525.6,2525.4,0.23757]
[1725107452341,2.58783997,2525.5,2525.4,0.23757]
[1725107452948,2.58783997,2525.6,2525.5,0.23756]
[1725107455758,2.58783997,2525.6,2525.2,1.77381604]
[1725107455961,2.58783997,2525.5,2525.3,0.23757]
[1725107456153,2.58783997,2525.5,2525.4,0.23757]
[1725107456658,2.58783997,2525.5,2525.3,0.23757]
[1725107458558,2.82539997,2525.5,2525.2,0.7376]
[1725107458957,0.3769,2525.4,2525.2,0.7376]
[1725107459361,2.96473997,2525.4,2525.2,0.7376]
[1725107460164,2.96473997,2525.4,2525.2,0.97519]
[1725107461267,2.96473997,2525.4,2525.2,4.93519]
[1725107461453,2.96473997,2525.4,2525.2,0.97519]
[1725107462559,2.96473997,2525.4,2525.2,4.93519]
[1725107462966,2.58783997,2525.5,2525.4,0.23757]
[1725107465269,2.58783997,2525.5,2525.3,0.60597]
[1725107465472,2.58783997,2525.4,2525.3,0.3684]
[1725107467359,2.58783997,2525.4,2525.3,4.3284]
[1725107467571,2.58783997,2525.4,2525.3,0.3684]
[1725107469771,2.58783997,2525.4,2525.1,1.27380604]
[1725107469958,0.7587,2525.3,2525.1,1.03621604]
[1725107470668,0.7587,2525.3,2525.1,1.27381604]
[1725107471563,2.58783997,2525.4,2525.1,1.27381604]
[1725107473173,2.58783997,2525.4,2525.2,0.23759]
[1725107473974,2.58783997,2525.4,2525.3,0.3592]
[1725107475073,2.94663997,2525.4,2525.3,0.3592]
[1725107479394,2.58783997,2525.4,2525.3,0.59678]
[1725107480380,2.59243997,2525.4,2525.3,0.3592]
[1725107480580,2.59243997,2525.4,2525.3,0.59678]
[1725107481380,2.59243997,2525.4,2525.3,0.3592]
[1725107485081,0.0046,2525.4,2525.3,0.3592]
[1725107486894,2.59944395,2525.4,2525.3,0.3592]
[1725107487375,2.59944395,2525.4,2525.3,0.7353]
[1725107487882,0.0046,2525.4,2525.3,0.7353]
[1725107488884,2.59948524,2525.4,2525.3,0.7353]
[1725107489388,0.0046,2525.4,2525.3,0.7353]
[1725107489591,2.5994756,2525.4,2525.3,2.35918604]
[1725107489890,2.5994756,2525.4,2525.3,2.71458604]
[1725107490186,2.5994756,2525.4,2525.3,1.32828]
[1725107490686,2.5994756,2525.4,2525.3,2.71450682]
[1725107490892,0.0046,2525.4,2525.3,2.71450682]
[1725107491083,2.5994756,2525.4,2525.3,2.71450682]
[1725107491284,2.5994756,2525.4,2525.3,1.32828]
[1725107491485,2.5994756,2525.4,2525.3,2.71452223]
[1725107494986,0.0046,2525.4,2525.3,2.71452223]
[1725107495594,2.5994756,2525.4,2525.3,2.71452223]
[1725107495781,0.0046,2525.4,2525.3,3.75073827]
[1725107496688,2.5948756,2525.5,2525.4,0.23757]
[1725107496985,2.5948756,2525.6,2525.5,0.23756]
[1725107497186,2.5948756,2525.7,2525.6,0.23755]
[1725107502488,2.5948756,2525.8,2525.7,0.23754]
[1725107504400,3.5948756,2525.9,2525.8,0.23753]
[1725107504804,7.5540756,2525.9,2525.8,0.23753]
[1725107505000,3.5948756,2525.9,2525.8,0.23753]
[1725107505600,2.5948756,2525.9,2525.8,0.23753]
[1725107508304,2.97831996,2526.0,2525.9,0.23752]
[1725107512197,2.97831996,2526.0,2525.8,0.23753]
[1725107512398,1.0,2525.9,2525.8,0.23753]
[1725107515104,1.0,2525.9,2525.7,0.23754]
[1725107517909,1.0,2525.9,2525.8,0.23753]
[1725107518108,1.0,2525.9,2525.7,0.23754]
[1725107521505,0.38344436,2526.0,2525.7,0.23754]
[1725107523112,2.97373628,2526.0,2525.7,0.23754]
[1725107524109,3.21124628,2526.0,2525.6,0.61445]
[1725107524417,2.97373628,2526.0,2525.7,0.23754]
[1725107525611,2.97373628,2526.0,2525.8,0.23753]
[1725107526004,2.97373628,2526.0,2525.9,0.3701]
[1725107527105,2.97373628,2526.0,2525.9,0.60762]
[1725107530413,2.97373628,2526.0,2525.9,0.3701]
[1725107534720,2.97373628,2526.0,2525.9,0.60762]
[1725107536413,2.59623628,2526.0,2525.9,0.60762]
[1725107540426,0.00594436,2526.0,2525.9,0.60762]
[1725107540630,4.21374436,2526.0,2525.6,1.03711682]
[1725107540817,0.23757,2525.4,2525.0,5.20231682]
[1725107541015,4.71616918,2525.3,2525.0,3.4454]
[1725107541231,2.59356918,2525.2,2525.0,3.4454]
[1725107541420,2.59356918,2525.2,2525.1,0.2376]
[1725107541726,2.59356918,2525.2,2525.0,3.4454]
[1725107541925,4.71616918,2525.3,2525.0,3.4454]
[1725107542226,2.59356918,2525.2,2525.0,3.4454]
[1725107542424,4.71616918,2525.3,2525.0,3.4454]
[1725107542623,2.59356918,2525.2,2525.0,3.4454]
[1725107543327,2.59356918,2525.2,2525.1,0.2376]
[1725107543627,2.59356918,2525.3,2525.2,0.23759]
[1725107544021,2.59356918,2525.5,2525.3,0.23758]
[1725107547738,5.0194,2525.6,2525.3,0.23758]
[1725107547739,7.61296918,2525.6,2525.3,0.23758]
[1725107550137,7.61296918,2525.6,2525.2,0.60038]
[1725107553231,2.59356918,2525.6,2525.2,0.3628]
[1725107553443,3.74776918,2525.9,2525.6,0.23755]
[1725107553933,3.74776918,2525.9,2525.5,0.23755]
[1725107553934,4.20116507,2525.8,2525.5,0.23755]
[1725107554328,4.20116507,2525.8,2525.6,1.0808]
[1725107554644,4.20116507,2525.8,2525.6,1.31835]
[1725107555926,4.20116507,2525.8,2525.7,0.23754]
[1725107556530,4.20116507,2525.8,2525.6,1.0808]
[1725107556735,5.20116507,2525.8,2525.6,1.0808]
[1725107556937,5.58746507,2525.8,2525.6,1.0808]
[1725107559835,5.58746507,2525.8,2525.6,1.31835]
[1725107560341,5.58746507,2525.8,2525.6,1.0808]
[1725107564133,5.58746507,2525.8,2525.3,0.23758]
[1725107564134,0.23754,2525.7,2525.3,0.23758]
[1725107564447,0.23754,2525.7,2525.3,1.37868]
[1725107564948,8.41857425,2525.8,2525.4,0.23757]
[1725107565246,8.41857425,2525.8,2525.3,1.37867]
[1725107567150,11.62637425,2525.8,2525.3,1.37867]
[1725107568245,11.62637425,2525.8,2525.4,0.23757]
[1725107570649,8.41857425,2525.8,2525.4,0.23757]
[1725107575853,8.18103425,2525.8,2525.3,1.1411]
[1725107576357,8.41857425,2525.8,2525.4,0.23756]
[1725107576559,8.18103425,2525.8,2525.4,0.23756]
[1725107577455,8.41856425,2525.8,2525.4,0.23756]
[1725107578054,8.18103425,2525.8,2525.4,0.23757]
[1725107578855,8.18103425,2525.8,2525.5,0.23756]
[1725107579357,8.18103425,2525.8,2525.6,0.3629]
[1725107581254,5.58746507,2525.8,2525.6,0.3629]
[1725107581556,8.18103425,2525.8,2525.6,0.3629]
[1725107582858,5.80136918,2525.9,2525.8,0.23753]
[1725107583453,6.80136918,2525.9,2525.6,0.60045]
[1725107583650,3.65830509,2525.8,2525.6,0.60045]
[1725107584467,3.65830509,2525.8,2525.6,0.3629]
[1725107586160,3.66290509,2525.8,2525.6,0.60045]
[1725107586658,3.66290509,2525.8,2525.6,0.3629]
[1725107587858,2.59050509,2525.7,2525.6,0.3629]
[1725107588254,2.59050509,2525.7,2525.6,4.3221]
[1725107589660,2.59050509,2525.7,2525.6,4.55965]
[1725107589961,2.59510509,2525.8,2525.6,4.55965]
[1725107590163,2.59510509,2525.8,2525.6,0.60045]
[1725107592562,2.59050509,2525.7,2525.6,0.60045]
[1725107593068,2.59050509,2525.7,2525.6,4.55965]
[1725107594270,2.59510509,2525.8,2525.6,4.55965]
[1725107594470,2.59050509,2525.7,2525.6,0.60045]
[1725107594968,2.59050509,2525.7,2525.6,4.55965]
[1725107595468,3.82805509,2525.7,2525.4,1.27468682]
[1725107595768,3.70230509,2525.6,2525.4,0.23757]
[1725107596473,2.59050509,2525.5,2525.4,0.23757]
[1725107596662,5.79830509,2525.5,2525.3,1.03711682]
[1725107596863,2.1118,2525.6,2525.2,5.71367524]
[1725107596864,2.59050509,2525.4,2525.2,5.19511682]
[1725107597070,2.82807509,2525.5,2525.3,0.3682]
[1725107597260,2.59050509,2525.4,2525.3,0.3682]
[1725107600975,2.59050509,2525.4,2525.3,0.60578]
[1725107602072,2.59050509,2525.5,2525.3,0.60578]
[1725107602681,2.59050509,2525.4,2525.3,0.60578]
[1725107602870,2.59050509,2525.5,2525.4,0.23757]
[1725107605680,2.59050509,2525.5,2525.3,0.60577]
[1725107607074,2.82806509,2525.5,2525.3,0.3682]
[1725107607281,0.23758,2525.3,2525.0,4.60731682]
[1725107607471,0.7343,2525.2,2525.0,4.96261682]
[1725107607671,3.32847653,2525.2,2525.0,3.9255]
[1725107608384,3.32847653,2525.2,2525.0,4.1631]
[1725107608971,3.32847653,2525.2,2525.0,0.9553]
[1725107609879,3.32847653,2525.2,2525.0,0.7177]
[1725107610079,3.32847653,2525.2,2524.9,0.23761]
[1725107613287,0.7343,2525.2,2524.9,0.23761]
[1725107614582,3.32847653,2525.2,2524.9,0.23761]
[1725107614979,3.56606653,2525.2,2524.9,0.23761]
[1725107615485,0.2376,2525.1,2524.8,3.9523]
[1725107616374,0.2376,2525.1,2524.8,4.18993]
[1725107616573,3.56606653,2525.2,2524.8,3.9523]
[1725107616782,0.7343,2525.2,2525.0,0.2376]